bitfinex-derivatives/quotes_ETHF0:USTF0_20250817
["timestamp","ask_amount","ask_price","bid_price","bid_amount"]
[1755464576877,4.6564,4473.8,4473.7,0.8243]
[1755464577073,5.22271591,4473.8,4473.7,0.6577]
[1755464577272,5.22271591,4473.8,4473.7,0.2385]
[1755464577474,0.5882,4473.1,4473.0,1.4471]
[1755464577772,1.4486,4473.1,4473.0,1.4471]
[1755464580276,0.9629,4473.1,4473.0,1.4471]
[1755464580479,1.4486,4473.1,4473.0,1.4471]
[1755464580878,1.4486,4473.1,4473.0,0.4192]
[1755464581077,0.9542,4473.1,4473.0,1.4471]
[1755464582081,1.2014,4473.1,4473.0,1.4471]
[1755464582276,0.8604,4473.7,4473.1,0.8613]
[1755464582475,1.15589724,4473.6,4473.5,0.4192]
[1755464582676,2.01629724,4473.6,4473.5,1.0326]
[1755464583073,2.01629724,4473.6,4473.5,1.2805]
[1755464583883,3.2078,4473.8,4473.5,0.5858]
[1755464584084,0.56774603,4473.7,4473.6,1.4471]
[1755464586175,3.2078,4473.8,4473.6,0.5858]
[1755464586376,0.56742037,4473.7,4473.6,0.5858]
[1755464586978,0.56742037,4473.7,4473.6,1.4471]
[1755464587185,0.2385,4474.0,4473.6,3.7936]
[1755464587386,0.56749804,4473.9,4473.8,1.4471]
[1755464588685,1.52169804,4473.9,4473.8,1.4471]
[1755464588886,1.76889804,4473.9,4473.8,1.4471]
[1755464589284,0.90849804,4473.9,4473.8,1.4471]
[1755464589484,0.56749804,4473.9,4473.8,1.4471]
[1755464590088,0.80599804,4473.9,4473.8,1.4471]
[1755464590489,1.34989804,4473.9,4473.8,1.4471]
[1755464591089,1.52169804,4473.9,4473.8,1.4471]
[1755464592086,1.76889804,4473.9,4473.8,1.4471]
[1755464592894,2.01609804,4473.9,4473.8,1.4471]
[1755464593994,1.76889804,4473.9,4473.8,1.4471]
[1755464594293,2.01609804,4473.9,4473.8,1.4471]
[1755464594693,1.76889804,4473.9,4473.8,1.4471]
[1755464595289,0.56749804,4473.9,4473.8,1.4471]
[1755464595695,0.57240983,4473.9,4473.8,1.4471]
[1755464596296,0.00491179,4473.9,4473.8,1.4471]
[1755464599494,1.19591179,4473.9,4473.8,1.4471]
[1755464599694,1.19591179,4473.9,4473.6,3.2078]
[1755464599695,0.32911179,4473.9,4473.6,3.2078]
[1755464599999,1.431,4473.7,4473.6,4.6541]
[1755464601702,0.5633,4473.7,4473.6,4.6541]
[1755464602200,0.1622,4473.7,4473.6,4.6541]
[1755464602700,0.00491179,4473.9,4473.8,1.4463]
[1755464608906,0.32911179,4473.9,4473.8,1.4463]
[1755464609107,1.19591179,4473.9,4473.8,21.8063]
[1755464609306,1.43591179,4473.9,4473.8,1.2086]
[1755464609508,1.431,4473.8,4473.7,0.70096]
[1755464609704,1.431,4473.8,4473.7,0.2542]
[1755464610104,1.431,4473.8,4473.7,1.4463]
[1755464611214,0.16711179,4473.9,4473.8,1.89306]
[1755464611414,1.19591179,4473.9,4473.8,1.4463]
[1755464611711,1.43591179,4473.9,4473.8,1.4463]
[1755464611904,1.19591179,4473.9,4473.8,1.4463]
[1755464612105,0.00491179,4473.9,4473.8,1.4463]
[1755464616210,0.00491179,4473.9,4473.8,1.4686]
[1755464616614,0.00491179,4473.9,4473.8,1.4463]
[1755464619417,1.43591179,4473.9,4473.8,21.8073]
[1755464619617,1.43591179,4473.9,4473.7,0.44676]
[1755464619819,1.431,4473.8,4473.7,0.44676]
[1755464620019,1.431,4473.8,4473.7,21.06396]
[1755464620315,1.431,4473.8,4473.7,21.23176]
[1755464620715,1.431,4473.8,4473.7,21.85306]
[1755464621022,1.431,4473.8,4473.7,22.25606]
[1755464621918,1.431,4473.8,4473.7,20.363]
[1755464623124,1.431,4473.8,4473.7,21.8093]
[1755464625919,1.191,4473.8,4473.7,21.8093]
[1755464626923,1.431,4473.8,4473.7,21.8093]
[1755464627422,1.431,4473.8,4473.7,21.5716]
[1755464627822,1.431,4473.8,4473.7,21.5656]
[1755464629922,1.431,4473.8,4473.7,21.8227]
[1755464630525,1.191,4473.8,4473.7,21.8227]
[1755464630726,0.00491179,4473.9,4473.8,0.61776]
[1755464630929,0.00491179,4473.9,4473.8,1.91236]
[1755464631222,1.44671179,4473.9,4473.8,0.69306]
[1755464631619,1.44671179,4473.9,4473.8,1.65526]
[1755464632927,1.44671179,4473.9,4473.8,1.91236]
[1755464633426,1.44671179,4473.9,4473.8,22.25836]
[1755464633925,0.00491179,4473.9,4473.8,22.25836]
[1755464636825,0.00491179,4473.9,4473.8,22.28066]
[1755464637032,0.00491179,4473.9,4473.8,22.25836]
[1755464638933,0.00491179,4473.9,4473.8,24.24910349]
[1755464640336,0.1,4474.2,4474.1,1.91233]
[1755464640532,0.1,4474.2,4474.1,25.45713]
[1755464642337,0.3405,4474.2,4474.1,25.45713]
[1755464642933,1.5418,4474.2,4474.1,23.5418]
[1755464643437,1.5418,4474.2,4474.1,3.2078]
[1755464643631,1.5418,4474.2,4474.1,23.5418]
[1755464645040,1.5418,4474.2,4474.1,3.2078]
[1755464645242,1.5418,4474.2,4474.1,23.5478]
[1755464647240,1.5418,4474.2,4474.1,23.7941]
[1755464647442,1.5418,4474.2,4474.1,24.5955]
[1755464647740,1.5418,4474.2,4474.1,24.8526]
[1755464648440,1.5418,4474.2,4474.1,24.5955]
[1755464648743,1.5418,4474.2,4474.1,24.2193]
[1755464650644,1.5418,4474.2,4474.1,24.5875]
[1755464650842,1.0441,4474.2,4474.1,25.0054]
[1755464651036,1.2846,4474.2,4474.1,25.0054]
[1755464654645,0.1,4474.2,4474.1,25.0054]
[1755464655344,1.0445,4474.2,4474.1,25.0054]
[1755464655538,1.2846,4474.2,4474.1,25.0054]
[1755464655739,1.5418,4474.2,4474.1,25.0054]
[1755464656349,1.2846,4474.2,4474.1,25.0054]
[1755464657345,0.1,4474.2,4474.1,25.0054]
[1755464662551,1.5254,4474.2,4474.1,25.0054]
[1755464664452,1.2782,4474.2,4474.1,25.0054]
[1755464666352,1.5254,4474.2,4474.1,4.6734]
[1755464666756,1.5254,4474.2,4474.1,24.9854]
[1755464667050,1.2782,4474.2,4474.1,24.7503]
[1755464667250,1.5254,4474.2,4474.1,24.9962]
[1755464668355,1.2782,4474.2,4474.1,24.9962]
[1755464668745,1.5254,4474.2,4474.1,23.6908]
[1755464669052,1.5254,4474.2,4474.1,23.9436]
[1755464671249,1.5254,4474.2,4474.1,24.3338]
[1755464672654,1.5254,4474.2,4474.1,24.82]
[1755464672850,1.5254,4474.2,4474.1,24.9826]
[1755464675358,0.1,4474.2,4474.1,24.9826]
[1755464675554,0.1,4474.2,4474.1,25.0049]
[1755464675748,0.2402,4474.6,4474.5,1.90249]
[1755464675952,0.7796,4474.6,4474.5,22.21449]
[1755464676153,0.9409,4474.6,4474.5,22.21449]
[1755464676354,1.1782,4474.8,4474.7,1.49817]
[1755464676554,0.8064,4474.8,4474.7,25.42227]
[1755464676854,1.1782,4474.8,4474.7,25.42227]
[1755464677855,0.938,4474.8,4474.7,25.42227]
[1755464678057,1.1782,4474.8,4474.7,25.42227]
[1755464678258,1.4254,4474.8,4474.7,25.42227]
[1755464678456,1.1782,4474.8,4474.7,24.37497]
[1755464678657,1.4254,4474.8,4474.7,23.70035645]
[1755464679252,1.4254,4474.8,4474.7,23.5198]
[1755464686961,0.9409,4474.8,4474.7,24.9756]
[1755464687162,1.1782,4474.8,4474.7,24.9756]
[1755464687362,1.4254,4474.8,4474.7,24.9756]
[1755464687763,0.5854,4474.8,4474.7,24.3395]
[1755464688062,1.4421,4474.8,4474.7,24.9798]
[1755464692264,1.4421,4474.8,4474.7,23.9241]
[1755464692560,0.5854,4474.8,4474.7,20.31]
[1755464692862,0.9546,4474.3,4474.2,3.2078]
[1755464693063,1.4421,4474.3,4474.2,23.5178]
[1755464695865,1.4421,4474.3,4474.2,24.9937]
[1755464697864,1.4421,4474.3,4474.2,23.5178]
[1755464698067,1.4421,4474.3,4474.2,23.7719]
[1755464698264,1.4421,4474.3,4474.2,24.9937]
[1755464699166,1.204,4474.3,4474.2,24.9937]
[1755464699363,0.8567,4474.6,4474.2,24.9937]
[1755464699563,0.5836,4474.5,4474.4,0.5815]
[1755464699758,0.3342,4474.5,4474.4,21.7869]
[1755464699966,6.41867908,4479.5,4474.7,0.5815]
[1755464699967,0.9528,4474.8,4474.7,0.5815]
[1755464700163,1.1927,4475.3,4475.2,0.5815]
[1755464700362,2.01068127,4475.3,4475.2,21.7869]
[1755464700570,2.01068127,4475.3,4475.2,0.6761]
[1755464700766,2.01068127,4475.3,4475.2,20.311]
[1755464701064,0.5854,4475.0,4474.9,20.311]
[1755464701264,1.4421,4475.0,4474.9,20.311]
[1755464702271,1.4421,4475.0,4474.9,21.7869]
[1755464702465,0.5854,4475.0,4474.9,21.7869]
[1755464702767,1.204,4475.0,4474.9,21.7869]
[1755464702973,1.4421,4475.0,4474.9,21.7869]
[1755464703473,1.204,4475.0,4474.9,21.7869]
[1755464703868,1.4421,4475.0,4474.9,21.1466]
[1755464704075,1.4421,4475.0,4474.9,21.7869]
[1755464705370,1.4421,4475.0,4474.9,20.311]
[1755464705569,1.0262,4474.9,4474.8,0.4255]
[1755464705769,1.4421,4474.9,4474.8,21.7859]
[1755464705970,1.4421,4474.9,4474.8,1.4759]
[1755464706167,1.4421,4474.9,4474.8,21.7859]
[1755464706572,0.9546,4474.9,4474.8,21.7859]
[1755464706868,1.204,4474.9,4474.8,21.7859]
[1755464707773,1.204,4474.9,4474.8,20.31]
[1755464708072,1.4421,4474.9,4474.8,20.5641]
[1755464708270,1.4421,4474.9,4474.8,21.7859]
[1755464709582,1.204,4474.9,4474.8,20.31]
[1755464709881,0.5854,4474.9,4474.7,3.2078]
[1755464710081,0.5854,4474.2,4474.1,3.7893]
[1755464710279,1.4421,4474.2,4474.1,24.7359]
[1755464710578,1.204,4474.2,4474.1,24.9927]
[1755464710969,0.3692,4474.6,4474.1,24.0983]
[1755464711171,1.204,4474.5,4474.4,1.4759]
[1755464711373,1.4421,4474.5,4474.4,21.7849]
[1755464716587,3.2078,4475.3,4474.4,21.7849]
[1755464716794,0.1647,4474.7,4474.6,3.7893]
[1755464717092,0.6186,4474.9,4474.6,24.0973]
[1755464717392,0.7034,4474.9,4474.8,0.5815]
[1755464717585,0.9546,4474.9,4474.8,21.7839]
[1755464717984,1.1997,4474.9,4474.8,21.7839]
[1755464718191,1.439,4474.9,4474.8,21.7839]
[1755464718688,3.5793,4475.3,4474.8,21.7839]
[1755464718896,0.9605,4475.2,4475.1,0.5786]
[1755464719195,0.9605,4475.2,4475.1,21.7584]
[1755464719386,1.2083,4475.2,4475.1,21.7584]
[1755464719691,1.4476,4475.2,4475.1,21.5146]
[1755464719890,1.4476,4475.2,4475.1,21.7584]
[1755464720288,1.4476,4475.2,4474.6,3.4516]
[1755464720489,0.2478,4474.9,4474.8,0.8718]
[1755464720691,1.4476,4474.9,4474.8,1.4504]
[1755464721090,1.2083,4474.9,4474.8,1.4504]
[1755464724592,0.2451,4475.5,4474.9,0.3817]
[1755464724797,1.2083,4475.5,4475.4,0.9603]
[1755464724999,1.77703267,4475.5,4475.4,1.4504]
[1755464725193,2.01633267,4475.5,4475.4,1.4504]
[1755464726295,1.4476,4475.5,4475.4,1.4504]
[1755464728590,0.1726,4475.5,4475.4,1.4504]
[1755464728794,1.4476,4475.5,4475.4,1.4504]
[1755464729299,2.01657667,4475.5,4475.4,1.4504]
[1755464729601,0.2451,4475.7,4475.4,1.4504]
[1755464729802,0.7892,4475.5,4475.4,1.4504]
[1755464729998,0.9605,4475.5,4475.4,1.4504]
[1755464730297,0.1726,4476.1,4476.0,0.5786]
[1755464730507,0.7892,4476.1,4476.0,20.8826]
[1755464730802,0.98664733,4476.1,4476.0,21.2643]
[1755464731300,0.4177,4476.1,4476.0,21.7544]
[1755464731800,3.2078,4476.3,4476.2,0.5786]
[1755464731996,3.2078,4476.3,4476.2,1.4504]
[1755464732192,3.6255,4476.3,4476.2,1.4504]
[1755464732396,4.4161,4476.3,4476.2,1.4504]
[1755464733102,1.2083,4476.3,4476.2,1.4504]
[1755464734097,1.2083,4476.3,4476.0,20.304]
[1755464734402,0.9632,4476.2,4476.1,0.4128]
[1755464734600,0.5917,4475.7,4475.6,4.0327]
[1755464734790,0.9632,4475.7,4475.6,24.9602]
[1755464734990,1.4476,4475.7,4475.6,24.9602]
[1755464735603,0.3439,4475.7,4475.6,24.9602]
[1755464735898,0.8368,4476.0,4475.9,0.5786]
[1755464736097,1.4476,4476.0,4475.9,1.4504]
[1755464736302,1.4476,4476.0,4475.9,0.6504]
[1755464736997,1.4476,4476.0,4475.9,1.0321]
[1755464737398,1.4476,4476.0,4475.9,0.2463]
[1755464737600,0.5917,4475.8,4475.7,20.5473]
[1755464737797,0.8283,4475.7,4475.1,3.2078]
[1755464738102,0.5917,4474.7,4474.6,3.2078]
[1755464738297,1.1037,4474.5,4474.4,1.4504]
[1755464738502,1.4476,4474.5,4474.4,1.4504]
[1755464738698,1.2083,4474.5,4474.4,1.4504]
[1755464739098,0.1726,4474.5,4474.4,1.4504]
[1755464739805,0.589,4474.8,4474.7,1.4504]
[1755464740004,1.2083,4474.8,4474.7,1.4504]
[1755464740205,1.4476,4474.8,4474.7,1.4504]
[1755464740402,3.2078,4475.1,4474.8,0.4901]
[1755464740703,4.6554,4475.1,4475.0,1.4504]
[1755464741207,4.6554,4475.1,4475.0,1.2066]
[1755464741606,1.4476,4474.8,4474.7,20.9514]
[1755464742104,1.2025,4474.6,4474.5,20.302]
[1755464742304,1.4476,4474.6,4474.5,20.5483]
[1755464742606,1.4476,4474.6,4474.5,20.9524]
[1755464742803,1.4476,4474.6,4474.1,3.2078]
[1755464743002,1.0761,4474.3,4474.2,21.1962]
[1755464743201,1.4476,4474.3,4474.2,21.7524]
[1755464743805,0.3439,4474.3,4474.2,20.8806]
[1755464744201,0.589,4474.3,4474.2,20.8806]
[1755464744401,0.9605,4474.3,4474.2,20.8806]
[1755464744612,0.9605,4474.3,4474.2,21.7524]
[1755464745109,0.1713,4474.3,4474.2,21.7524]
[1755464745500,0.8559,4474.9,4474.5,0.5786]
[1755464745807,0.831,4474.9,4474.8,1.4504]
[1755464746306,1.4476,4474.9,4474.8,1.4504]
[1755464747110,0.8559,4475.5,4474.9,0.628]
[1755464747305,2.01443489,4475.4,4475.3,1.2839]
[1755464747511,0.5917,4475.1,4475.0,0.2463]
[1755464747809,1.4915,4475.1,4475.0,0.2463]
[1755464748010,1.4915,4475.1,4475.0,0.6646]
[1755464748211,1.4915,4475.1,4475.0,1.4412]
[1755464750311,1.2291,4475.1,4475.0,1.4412]
[1755464750607,3.542,4475.6,4475.5,0.5807]
[1755464750912,3.542,4476.1,4476.0,1.0846]
[1755464751210,4.1754,4476.1,4476.0,1.4499]
[1755464751412,4.417,4476.1,4476.0,1.4499]
[1755464751602,4.6794,4476.1,4476.0,1.4499]
[1755464752410,4.417,4476.1,4476.0,1.4499]
[1755464753006,1.2092,4476.1,4476.0,1.4499]
[1755464756210,0.3342,4476.1,4476.0,1.4499]
[1755464757210,0.1626,4476.1,4476.0,1.4499]
[1755464758817,0.4037,4476.1,4476.0,1.4499]
[1755464759816,0.2411,4476.1,4476.0,1.4499]
[1755464760117,0.3342,4476.2,4476.1,1.4499]
[1755464760516,0.5753,4476.2,4476.1,1.4499]
[1755464760815,0.9676,4476.2,4476.1,1.4499]
[1755464761013,1.4716,4476.2,4476.1,1.4499]
[1755464762222,1.2092,4476.2,4476.1,1.4499]
[1755464762420,3.542,4476.7,4476.6,0.3334]
[1755464762620,4.046,4476.7,4476.6,1.4499]
[1755464763113,4.417,4476.7,4476.6,1.4499]
[1755464764224,3.2078,4476.7,4476.6,1.4499]
[1755464764419,3.6115,4476.7,4476.6,1.4499]
[1755464764619,4.1754,4476.7,4476.6,1.4499]
[1755464765019,4.417,4476.7,4476.6,1.4499]
[1755464765418,4.6794,4476.7,4476.6,1.4499]
[1755464765722,4.6794,4476.7,4476.6,0.8357]
[1755464765921,0.8958,4476.6,4476.4,0.255]
[1755464766120,1.4716,4476.5,4476.4,0.5884]
[1755464766320,1.4716,4476.5,4476.4,1.4499]
[1755464767120,0.3342,4476.5,4476.4,0.5807]
[1755464767322,1.2092,4476.5,4476.4,0.5807]
[1755464767723,1.2092,4476.5,4476.4,1.4499]
[1755464768221,0.1626,4476.5,4476.4,1.4499]
[1755464768419,3.2078,4476.7,4476.4,0.5807]
[1755464768616,4.1754,4476.7,4476.6,0.5807]
[1755464768827,4.1754,4476.7,4476.6,1.4499]
[1755464769025,0.2411,4476.9,4476.6,1.4499]
[1755464769327,0.796,4476.9,4476.8,1.4499]
[1755464769529,0.9676,4476.9,4476.8,1.4499]
[1755464769718,1.2092,4476.9,4476.8,1.4499]
[1755464770024,1.4716,4476.9,4476.8,1.4499]
[1755464770518,1.2092,4476.9,4476.8,1.4499]
[1755464770918,0.8382,4476.9,4476.2,3.2078]
[1755464771114,0.2411,4476.6,4476.3,1.4499]
[1755464771324,1.2092,4476.7,4476.6,1.4499]
[1755464773029,1.4716,4476.7,4476.6,1.4499]
[1755464775024,0.8169,4476.3,4476.2,4.6577]
[1755464775230,1.4716,4476.3,4476.2,4.6577]
[1755464775430,0.2624,4476.6,4476.2,4.6577]
[1755464775727,0.6334,4476.5,4476.3,0.8692]
[1755464775918,1.2092,4476.5,4476.4,0.5807]
[1755464776125,1.2092,4476.5,4476.4,1.4499]
[1755464777422,1.4716,4476.5,4476.4,1.4499]
[1755464778418,0.8169,4476.5,4476.4,1.4499]
[1755464778623,0.5753,4476.5,4476.4,1.4499]
[1755464779926,0.8065,4476.3,4476.2,3.2078]
[1755464780132,0.5678,4475.8,4475.7,23.5008]
[1755464780432,1.4364,4475.8,4475.7,24.1612]
[1755464780633,1.4364,4475.8,4475.7,24.325]
[1755464780929,1.4364,4475.8,4475.7,24.9454]
[1755464781518,1.4364,4475.8,4475.7,20.7081]
[1755464781729,0.5678,4475.6,4475.5,0.2453]
[1755464781930,1.4364,4475.6,4475.5,0.8242]
[1755464782124,1.4364,4475.6,4475.5,1.4446]
[1755464784627,1.4364,4475.6,4475.2,4.0735]
[1755464784831,0.5678,4475.6,4475.2,3.8282]
[1755464785024,1.4364,4475.3,4475.2,3.2078]
[1755464785733,1.4364,4474.8,4474.7,3.4531]
[1755464785932,1.4364,4474.8,4474.7,4.228]
[1755464786131,1.4364,4474.8,4474.7,4.6524]
[1755464787231,1.1749,4474.8,4474.7,4.6524]
[1755464790336,1.4364,4474.8,4474.7,4.6524]
[1755464791132,1.1749,4474.8,4474.7,4.6524]
[1755464792134,1.4364,4474.8,4474.7,4.6524]
[1755464792633,1.4364,4474.8,4474.7,3.3677]
[1755464792833,1.4364,4474.8,4473.6,1.99074349]
[1755464792834,0.1649,4474.3,4474.2,23.5038]
[1755464793034,1.4364,4474.3,4474.2,24.9484]
[1755464794023,1.4364,4474.3,4474.2,24.6878]
[1755464794231,1.4364,4474.3,4474.2,24.9484]
[1755464796336,1.1749,4474.3,4474.2,4.6524]
[1755464796538,0.5678,4474.3,4474.2,24.9484]
[1755464796736,1.1749,4474.3,4474.2,24.9484]
[1755464796932,0.9362,4474.4,4474.3,1.1894]
[1755464797236,1.1749,4474.4,4474.3,1.4446]
[1755464800034,1.4364,4474.4,4474.3,1.4446]
[1755464801038,1.4364,4474.4,4474.3,20.297]
[1755464801737,1.4364,4474.4,4474.3,20.5423]
[1755464802334,0.3684,4474.2,4473.7,3.2078]
[1755464802634,0.8686,4473.2,4473.1,0.10060025]
[1755464802838,1.4364,4473.2,4473.1,0.10060025]
[1755464803137,1.4364,4473.2,4472.2,0.7749]
[1755464803138,0.5678,4472.3,4472.2,0.7749]
[1755464803335,1.4364,4472.3,4472.2,0.4151]
[1755464803537,0.3242,4472.1,4472.0,3.2078]
[1755464803726,0.5678,4472.1,4471.8,20.297]
[1755464803933,1.1749,4472.0,4471.9,0.2453]
[1755464804132,1.1749,4472.0,4471.9,0.6604]
[1755464804328,1.1749,4472.0,4471.9,0.4151]
[1755464804534,0.5678,4472.0,4471.8,20.297]
[1755464804737,1.4364,4471.9,4471.8,20.297]
[1755464804938,1.4364,4471.9,4471.7,20.297]
[1755464805234,1.4364,4471.8,4471.7,20.297]
[1755464805431,3.2078,4472.3,4471.3,0.2453]
[1755464805432,0.1649,4471.4,4471.3,0.2453]
[1755464805631,1.1749,4471.4,4471.3,21.7416]
[1755464805836,0.9313,4471.4,4471.3,21.7416]
[1755464806537,1.1749,4471.4,4471.3,21.7416]
[1755464806938,1.4364,4471.4,4471.3,21.7416]
[1755464807143,1.4364,4471.4,4471.3,0.1599]
[1755464807333,1.1122,4471.1,4471.0,20.9614]
[1755464807535,1.4364,4471.1,4471.0,21.485]
[1755464807839,1.4364,4471.1,4471.0,21.7318]
[1755464808941,1.4364,4471.1,4471.0,21.1252]
[1755464809144,1.4364,4471.1,4471.0,21.7487]
[1755464810637,0.8065,4471.1,4471.0,21.7487]
[1755464811436,1.1885,4471.1,4471.0,21.7487]
[1755464812128,1.4409,4471.1,4471.0,21.7487]
[1755464820447,1.4409,4471.1,4471.0,21.7577]
[1755464826656,1.4409,4471.1,4471.0,1.4477]
[1755464826857,1.4409,4471.1,4471.0,21.7587]
[1755464827758,1.4409,4471.1,4471.0,1.4477]
[1755464827958,1.4409,4471.1,4471.0,21.7587]
[1755464828355,1.4409,4471.1,4470.9,3.2078]
[1755464828664,1.4776,4470.6,4470.5,0.2413]
[1755464828961,1.4776,4470.6,4470.5,20.311]
[1755464829161,1.4776,4470.6,4470.5,20.5523]
[1755464829357,1.4776,4470.6,4470.5,0.2413]
[1755464829560,1.4776,4470.6,4470.5,20.5523]
[1755464829750,2.04427486,4470.6,4470.5,20.5523]
[1755464832062,2.04427486,4470.6,4470.5,0.2413]
[1755464832258,2.04427486,4470.6,4470.5,20.5523]
[1755464832765,2.04427486,4470.6,4470.5,20.929]
[1755464833163,2.04427486,4470.6,4470.5,0.2413]
[1755464833370,0.5812,4470.4,4470.3,0.2413]
[1755464833664,2.04427486,4470.4,4470.3,0.618]
[1755464833865,2.04427486,4470.4,4470.3,0.7826]
[1755464834467,2.04427486,4470.4,4470.3,1.4359]
[1755464839568,1.79187486,4470.4,4470.2,23.5198]
[1755464839762,1.4714,4470.4,4470.3,1.2856]
[1755464839960,2.04047602,4470.4,4470.3,1.4556]
[1755464840270,0.56907602,4470.4,4470.3,1.4556]
[1755464840767,1.14647602,4470.4,4470.3,1.4556]
[1755464840965,1.50297602,4470.4,4470.3,1.4556]
[1755464841866,1.74037602,4470.4,4470.3,1.4556]
[1755464842068,1.98657602,4470.4,4470.3,1.4556]
[1755464842972,1.98657602,4470.4,4470.3,21.7686]
[1755464844766,0.6027,4470.3,4469.7,3.2078]
[1755464844968,0.5717,4469.8,4469.7,3.2078]
[1755464845162,1.1713,4469.6,4469.5,20.8664]
[1755464845367,1.98657602,4469.6,4469.5,20.8664]
[1755464845561,1.98657602,4469.6,4469.5,21.7686]
[1755464846169,1.4175,4469.6,4469.5,21.7686]
[1755464846764,1.98611659,4469.6,4469.5,21.7686]
[1755464847173,1.98611659,4469.6,4469.5,21.7696]
[1755464848276,1.4175,4469.6,4469.5,21.7696]
[1755464852579,1.4175,4469.6,4469.5,1.4556]
[1755464852783,1.4175,4469.6,4469.5,21.7706]
[1755464857486,1.4175,4469.6,4469.5,21.5231]
[1755464857683,1.4175,4469.6,4469.5,21.7706]
[1755464860784,1.1713,4469.6,4469.5,21.7706]
[1755464861391,0.8148,4470.5,4470.4,0.5837]
[1755464861585,1.98575322,4470.5,4470.4,0.4137]
[1755464861798,1.98575322,4470.5,4470.4,0.6589]
[1755464862080,1.49645322,4470.5,4470.2,0.2475]
[1755464862284,1.4175,4470.4,4470.3,0.2452]
[1755464862588,1.1713,4470.4,4470.3,1.4556]
[1755464864384,4.3791,4470.8,4470.7,0.9629]
[1755464864690,4.3791,4470.8,4470.7,1.4556]
[1755464864691,3.2078,4470.8,4470.7,1.4556]
[1755464867290,0.5996,4471.3,4470.7,0.5837]
[1755464867484,1.1713,4471.3,4471.2,0.5837]
[1755464867684,1.4175,4471.3,4471.2,1.4556]
[1755464869892,1.4175,4471.3,4471.2,0.6589]
[1755464870093,1.4175,4471.3,4471.2,0.4194]
[1755464870593,1.4175,4471.3,4471.2,1.4883]
[1755464878695,1.1713,4471.3,4471.2,1.4883]
[1755464879193,1.4255,4471.3,4471.2,1.4883]
[1755464882000,0.3198,4471.4,4471.3,1.4735]
[1755464882201,0.9414,4471.4,4471.3,1.4735]
[1755464882405,1.1797,4471.4,4471.3,1.4735]
[1755464882697,1.4339,4471.4,4471.3,1.4735]
[1755464884303,0.3198,4471.4,4471.3,0.5856]
[1755464884505,0.9414,4471.4,4471.3,0.5856]
[1755464884798,0.9414,4471.4,4471.3,0.8484]
[1755464885002,0.9414,4471.4,4471.3,1.4735]
[1755464885600,1.1797,4471.4,4471.3,1.4735]
[1755464885801,1.4339,4471.4,4471.3,1.4735]
[1755464889503,0.1605,4471.4,4471.3,1.4735]
[1755464889811,0.4165,4471.5,4471.4,0.922]
[1755464890000,1.1797,4471.5,4471.4,1.4735]
[1755464890502,1.4339,4471.5,4471.4,1.4735]
[1755464894309,2.0027269,4471.5,4471.4,1.4735]
[1755464895211,2.00270734,4471.5,4471.4,1.4735]
[1755464897810,1.49900734,4471.5,4471.4,1.4735]
[1755464898011,1.77180734,4471.5,4471.4,1.4735]
[1755464898512,2.00980734,4471.5,4471.4,1.4735]
[1755464899510,2.00980734,4471.5,4471.4,1.1876]
[1755464899712,2.00980734,4471.5,4471.4,1.4613]
[1755464905412,0.56880734,4471.5,4471.4,1.4613]
[1755464905607,3.2078,4472.3,4472.2,0.3316]
[1755464905809,4.98375081,4472.3,4472.2,1.4543]
[1755464906317,5.22175081,4472.3,4472.2,1.4543]
[1755464907519,4.10705081,4472.3,4472.2,1.4543]
[1755464908818,3.94125081,4472.3,4472.2,1.4543]
[1755464909414,5.22175081,4472.3,4472.2,1.4543]
[1755464910223,4.6528,4472.3,4472.2,1.4543]
[1755464910422,4.6528,4472.3,4471.3,3.2078]
[1755464910423,0.8172,4472.2,4472.1,0.1633]
[1755464910621,1.445,4472.2,4472.1,1.4543]
[1755464912818,1.207,4472.2,4472.1,1.4543]
[1755464913119,3.2078,4472.3,4472.1,1.4543]
[1755464913320,4.012,4472.3,4472.2,1.4543]
[1755464913521,4.1778,4472.3,4472.2,1.4543]
[1755464913919,3.3723,4472.3,4472.2,1.4543]
[1755464915326,3.2078,4472.3,4472.2,1.4543]
[1755464916223,0.2499,4472.6,4472.2,1.4543]
[1755464916423,0.2499,4472.6,4472.5,0.581]
[1755464916722,0.81746693,4472.6,4472.5,1.4543]
[1755464916922,0.98196693,4472.6,4472.5,1.4543]
[1755464917218,1.37176693,4472.6,4472.5,1.4543]
[1755464917420,1.53756693,4472.6,4472.5,1.4543]
[1755464918523,0.5802,4472.6,4472.5,1.4543]
[1755464919026,3.2078,4472.9,4472.8,1.4543]
[1755464919825,0.2499,4473.2,4472.9,0.2584]
[1755464920020,0.97,4473.2,4473.1,1.4543]
[1755464920420,0.3303,4473.2,4473.1,1.4543]
[1755464920715,3.4458,4473.4,4472.4,0.4692]
[1755464920716,3.3723,4473.4,4473.3,0.581]
[1755464921025,4.7451119,4473.4,4473.3,1.4543]
[1755464921227,4.9821119,4473.4,4473.3,1.4543]
[1755464921427,5.2201119,4473.4,4473.3,1.4543]
[1755464921923,5.2201119,4473.4,4472.4,0.0223]
[1755464921924,5.2201119,4473.4,4472.4,0.6149]
[1755464922122,0.8777,4473.2,4472.5,3.7182]
[1755464922327,1.1951,4473.2,4473.1,1.4543]
[1755464922827,1.445,4473.2,4473.1,1.4543]
[1755464924326,3.5381,4473.4,4473.3,1.4543]
[1755464924719,0.3303,4473.4,4473.3,1.4543]